bitfinex-derivatives/quotes_BNBF0:USTF0_20250406
["timestamp","ask_amount","ask_price","bid_price","bid_amount"]
[1743950647381,5.646,581.7,581.17,0.28097314]
[1743950647680,5.646,581.7,581.18,0.28097314]
[1743950647875,5.646,581.7,581.15,1.2852962]
[1743950648075,5.646,581.7,581.16,0.28096502]
[1743950648582,5.646,581.7,581.15,1.2852962]
[1743950648882,5.646,581.7,581.16,0.28096006]
[1743950649084,5.646,581.7,581.18,1.2852962]
[1743950649282,5.646,581.7,581.19,0.28096006]
[1743950649683,5.646,581.7,581.18,1.2852962]
[1743950649876,5.646,581.7,581.19,0.28092338]
[1743950651485,5.646,581.7,581.22,1.2852962]
[1743950651683,5.646,581.7,581.23,0.28092338]
[1743950653587,5.646,581.7,581.23,1.56621958]
[1743950653885,5.646,581.7,581.24,0.28092338]
[1743950656585,5.646,581.7,581.25,0.28092338]
[1743950656786,5.646,581.7,581.18,0.28092338]
[1743950656980,5.646,581.7,581.19,0.28092338]
[1743950657187,5.646,581.7,581.2,0.34411562]
[1743950657385,5.646,581.7,581.21,0.28092338]
[1743950657986,5.646,581.7,581.22,0.28079418]
[1743950658186,5.646,581.7,581.21,0.28079418]
[1743950658486,5.646,581.7,581.22,0.28079418]
[1743950658686,5.646,581.7,581.21,0.28079418]
[1743950659681,5.646,581.7,581.2,0.34411562]
[1743950659885,5.646,581.7,581.21,0.28081027]
[1743950661383,5.646,581.7,581.22,0.28079879]
[1743950661587,5.646,581.7,581.21,0.28079879]
[1743950662784,5.646,581.7,581.2,0.34411562]
[1743950662989,5.646,581.7,581.21,0.28082788]
[1743950663289,5.646,581.7,581.22,1.2852962]
[1743950663491,5.646,581.7,581.23,0.28082788]
[1743950665990,5.646,581.7,581.22,0.28082788]
[1743950667890,5.646,581.7,581.21,1.2852962]
[1743950668092,5.646,581.7,581.31,1.2852962]
[1743950668285,5.646,581.7,581.32,0.28083886]
[1743950668988,5.646,581.7,581.31,1.2852962]
[1743950669287,5.646,581.7,581.32,0.28066011]
[1743950670393,5.646,581.7,581.31,1.2852962]
[1743950670793,5.646,581.7,581.2,0.34411562]
[1743950671093,5.646,581.7,581.21,0.28068469]
[1743950674692,5.646,581.7,581.23,1.2852962]
[1743950674894,5.646,581.7,581.24,0.28068396]
[1743950677595,5.646,581.7,581.36,1.2852962]
[1743950677795,5.646,581.7,581.37,0.28068396]
[1743950677989,0.29914383,582.1,581.37,0.28068396]
[1743950678897,0.58584182,582.82,581.38,0.28076856]
[1743950679098,0.34317089,582.8,581.38,0.28076856]
[1743950679397,0.90166755,582.79,581.38,0.28076856]
[1743950679598,0.34318856,582.77,581.38,0.28076856]
[1743950679798,0.58584182,582.76,581.37,1.2852962]
[1743950679994,0.34320623,582.74,581.38,0.28073465]
[1743950680199,1.6476538,582.73,581.38,0.28073465]
[1743950680501,0.3432239,582.71,581.38,0.28073465]
[1743950680699,0.90163311,582.7,581.38,0.28073465]
[1743950680895,0.34324157,582.68,581.38,0.28073465]
[1743950681095,0.90163311,582.67,581.38,0.28073465]
[1743950681397,0.34325924,582.65,581.38,0.28073465]
[1743950681597,0.90163311,582.64,581.38,0.28073465]
[1743950681793,0.34327692,582.62,581.39,1.2852962]
[1743950682001,0.90163311,582.61,581.4,0.28073465]
[1743950682302,0.34329459,582.59,581.4,0.28073465]
[1743950682495,0.90163311,582.58,581.4,0.28073465]
[1743950682700,1.24493949,582.57,581.4,0.28073465]
[1743950682899,1.24494538,582.56,581.4,0.28073465]
[1743950683094,0.829,582.63,581.4,0.28073465]
[1743950683095,1.24495128,582.55,581.4,0.28073465]
[1743950683295,1.24495717,582.54,581.4,0.28073465]
[1743950683493,1.24496306,582.53,581.4,0.28073465]
[1743950683698,1.24496896,582.52,581.4,0.28073465]
[1743950683893,1.24497485,582.51,581.4,0.28073465]
[1743950684100,1.24498074,582.5,581.4,0.28073465]
[1743950684400,1.24498664,582.49,581.43,1.2852962]
[1743950684601,1.24499253,582.48,581.44,0.28073465]
[1743950684802,1.24499843,582.47,581.44,0.28073465]
[1743950685001,0.90163311,582.46,581.44,0.28073465]
[1743950685201,0.90163311,582.45,581.44,0.28073465]
[1743950685496,0.58582113,582.44,581.44,0.28073465]
[1743950685694,0.92921003,582.43,581.44,0.28073465]
[1743950685895,0.58582113,582.42,581.44,0.28073465]
[1743950686099,0.92922182,582.41,581.44,0.28073465]
[1743950686295,0.58582113,582.4,581.44,0.28073465]
[1743950686500,0.58582113,582.39,581.4,1.2852962]
[1743950686698,0.58582113,582.38,581.41,0.28077147]
[1743950686901,0.58582113,582.37,581.41,0.28077147]
[1743950687199,0.58582113,582.36,581.41,0.28077147]
[1743950687397,0.58582113,582.35,581.41,0.28077147]
[1743950687602,0.58582113,582.34,581.41,0.28077147]
[1743950687802,0.58582113,582.33,581.41,0.28077147]
[1743950688097,0.58608339,582.32,581.41,0.28077147]
[1743950688301,0.58608339,582.31,581.41,0.28077147]
[1743950688500,0.58608339,582.3,581.41,0.28077147]
[1743950688701,0.58608339,582.29,581.41,0.28077147]
[1743950688904,0.58608339,582.28,581.39,1.2852962]
[1743950689103,0.58608339,582.27,581.4,0.28077367]
[1743950689301,0.58608339,582.26,581.4,0.28077367]
[1743950689504,0.58608339,582.25,581.4,0.28077367]
[1743950689705,0.58608339,582.24,581.4,0.28077367]
[1743950689899,0.58608339,582.23,581.4,0.28077367]
[1743950690198,0.58608339,582.22,581.4,0.28077367]
[1743950690400,0.58608339,582.21,581.4,0.28077367]
[1743950690599,0.58608339,582.2,581.33,0.28077367]
[1743950690905,0.58608339,582.19,581.33,0.28077367]
[1743950691102,0.58608339,582.18,581.33,0.28077367]
[1743950691299,0.58608339,582.17,581.33,0.28077367]
[1743950691504,0.58608339,582.16,581.33,0.28077367]
[1743950691706,0.58608339,582.15,581.33,0.28077367]
[1743950691900,0.58608339,582.14,581.33,0.28077367]
[1743950692100,0.58608339,582.13,581.33,0.28077367]
[1743950692312,0.58608339,582.12,581.34,1.2852962]
[1743950692511,0.58608339,582.11,581.35,0.28077367]
[1743950692714,0.58608339,582.1,581.35,0.28077367]
[1743950692910,0.58608339,582.09,581.35,0.28077367]
[1743950693111,0.58608339,582.08,581.35,0.28077367]
[1743950693315,0.58608339,582.07,581.35,0.28077367]
[1743950693512,0.58608339,582.06,581.35,0.28077367]
[1743950693717,0.58664615,582.05,581.35,0.28077367]
[1743950693917,0.34340069,582.41,581.35,0.28077367]
[1743950694214,0.58663558,582.4,581.35,0.28077367]
[1743950694412,0.58663558,582.39,581.35,0.28077367]
[1743950694613,0.58663558,582.38,581.35,0.28077367]
[1743950694813,0.58663558,582.37,581.35,0.28077367]
[1743950695018,0.58662547,582.36,581.35,0.28077367]
[1743950695217,0.58662547,582.35,581.36,0.28083026]
[1743950695418,0.58662547,582.34,581.35,0.28083026]
[1743950695615,0.58662547,582.33,581.36,0.28083026]
[1743950695919,0.58662547,582.33,581.34,1.2852962]
[1743950695920,0.58662547,582.32,581.37,0.28083026]
[1743950696120,0.58662547,582.31,581.35,0.28083026]
[1743950696316,0.58662547,582.3,581.36,1.56612646]
[1743950696522,0.58662547,582.29,581.37,0.28083026]
[1743950696821,0.58662547,582.29,581.36,1.2852962]
[1743950696822,0.58657913,582.28,581.38,0.28076195]
[1743950697018,0.58657913,582.27,581.37,0.28076195]
[1743950697221,0.58657913,582.26,581.37,0.28076195]
[1743950697422,0.58657913,582.25,581.37,0.28076195]
[1743950697624,0.58657913,582.24,581.37,0.28076195]
[1743950697823,0.58657913,582.23,581.37,0.28076195]
[1743950698022,0.58657913,582.22,581.37,0.28076195]
[1743950698220,0.58657913,582.21,581.37,0.28076195]
[1743950698518,0.58657913,582.2,581.37,0.28076195]
[1743950698721,0.29902816,582.23,581.37,0.28076195]
[1743950698722,0.58657913,582.19,581.37,0.28076195]
[1743950698919,0.58657913,582.18,581.37,0.28076195]
[1743950699125,0.58657913,582.17,581.41,1.2852962]
[1743950699426,0.58657913,582.16,581.42,0.28076195]
[1743950699623,0.58657913,582.15,581.42,0.28076195]
[1743950699824,0.58657913,582.14,581.42,0.28076195]
[1743950700020,0.58657913,582.13,581.42,0.28076195]
[1743950700221,0.58657913,582.12,581.41,1.2852962]
[1743950700525,0.58656451,582.11,581.42,0.28076047]
[1743950700721,0.34340069,582.41,581.42,0.28076047]
[1743950700920,0.58656454,582.4,581.42,0.28076047]
[1743950701126,0.58656454,582.39,581.42,0.28076047]
[1743950701425,0.58656454,582.38,581.41,1.2852962]
[1743950701621,0.58656454,582.37,581.43,0.28073987]
[1743950701824,0.58656454,582.36,581.44,0.28073987]
[1743950702023,0.58656454,582.35,581.42,0.28073987]
[1743950702228,0.58656454,582.34,581.42,0.28073987]
[1743950702427,0.58656454,582.33,581.38,1.2852962]
[1743950702727,0.58656454,582.32,581.39,0.28066266]
[1743950702927,0.58656454,582.31,581.39,0.28066266]
[1743950703227,0.58656454,582.3,581.39,0.28066266]
[1743950703424,0.58656454,582.29,581.39,0.28066266]
[1743950703623,0.58656454,582.28,581.39,0.28066266]
[1743950703828,0.58656454,582.27,581.39,0.28066266]
[1743950704024,0.58656454,582.26,581.39,0.28066266]
[1743950704227,0.58656454,582.25,581.39,0.28066266]
[1743950704427,0.58656454,582.24,581.39,0.28066266]
[1743950704625,0.29900247,582.27,581.39,0.28066266]
[1743950704626,0.58656454,582.23,581.39,0.28066266]
[1743950704828,0.58656454,582.22,581.29,0.29900247]
[1743950705028,0.58656454,582.21,581.3,0.28060479]
[1743950705229,0.58642741,582.2,581.3,0.28060479]
[1743950705530,0.58642741,582.19,581.3,0.28060479]
[1743950705829,1.041,582.2,581.3,0.28060479]
[1743950706029,1.54848434,582.19,581.21,0.28060479]
[1743950706224,0.962,582.19,581.22,0.34410378]
[1743950706427,3.448,582.19,581.22,0.34410378]
[1743950706627,4.504,582.19,581.23,0.2805955]
[1743950706927,4.504,582.19,581.24,1.62938814]
[1743950707125,4.504,582.19,581.25,0.62468152]
[1743950707328,4.504,582.19,581.26,0.6246756]
[1743950707528,4.504,582.19,581.27,0.2805955]
[1743950707830,4.504,582.19,581.28,0.2805955]
[1743950708030,4.504,582.19,581.29,0.2805955]
[1743950708230,4.504,582.19,581.3,0.2805955]
[1743950708431,4.504,582.19,581.31,0.2805955]
[1743950708631,4.504,582.19,581.32,0.62464008]
[1743950708927,4.504,582.19,581.33,0.62463416]
[1743950709132,4.504,582.19,581.34,0.62462825]
[1743950709331,4.504,582.19,581.35,0.62462233]
[1743950709528,4.504,582.19,581.48,1.2852962]
[1743950709828,4.504,582.19,581.55,1.2852962]
[1743950710032,4.504,582.19,581.56,0.28059419]
[1743950710529,0.58641739,582.18,581.56,0.28059419]
[1743950710832,0.58641739,582.17,581.56,0.28059419]
[1743950711028,4.504,582.19,581.56,0.28059419]
[1743950711233,0.5863808,582.18,581.56,0.28059419]
[1743950711430,0.5863808,582.17,581.55,1.2852962]
[1743950711629,4.504,582.19,581.56,0.28061579]
[1743950711834,0.58642484,582.18,581.56,0.28061579]
[1743950712033,0.58642484,582.17,581.46,0.28061579]
[1743950712232,4.504,582.19,581.46,0.28061579]
[1743950712429,0.58639404,582.18,581.46,0.28061579]
[1743950712629,0.58639404,582.17,581.46,0.28061579]
[1743950712834,0.58639404,582.16,581.46,0.28061579]
[1743950713035,4.504,582.19,581.46,0.28061579]
[1743950713234,0.58641566,582.18,581.46,0.28061579]
[1743950713431,0.58641566,582.17,581.46,0.28061579]
[1743950713635,4.504,582.19,581.46,0.28061579]
[1743950713836,0.58642063,582.18,581.46,0.28061579]
[1743950714134,0.58642063,582.17,581.47,0.28061579]
[1743950714338,4.504,582.19,581.44,0.28061579]
[1743950714538,0.58639797,582.18,581.45,0.28061579]
[1743950714735,0.58639797,582.17,581.44,0.28061579]
[1743950714935,4.504,582.19,581.45,0.28061579]
[1743950715238,0.58639808,582.18,581.46,0.28061579]
[1743950715439,0.58639808,582.17,581.44,0.28061579]
[1743950715634,0.58639808,582.16,581.45,0.28061579]
[1743950715836,0.58639808,582.15,581.44,0.28061579]
[1743950716034,0.58639808,582.14,581.45,0.28061579]
[1743950716234,0.58639808,582.14,581.36,0.34402091]
[1743950716235,0.58639808,582.13,581.46,0.28061579]
[1743950716435,0.58639808,582.12,581.45,0.28061579]
[1743950716638,0.58639808,582.11,581.46,0.28061579]
[1743950716836,0.58639808,582.1,581.45,0.28061579]
[1743950717036,0.29904229,582.15,581.46,0.28061579]
[1743950717234,0.58648188,582.14,581.45,0.28061579]
[1743950717441,0.58648188,582.13,581.46,0.28061579]
[1743950717640,0.58648188,582.12,581.45,0.28061579]
[1743950717942,0.58648188,582.11,581.46,0.28061579]
[1743950718136,0.58648188,582.1,581.44,1.2852962]
[1743950718340,0.58648188,582.09,581.45,0.28069816]
[1743950718541,0.29904229,582.15,581.45,0.28069816]
[1743950718742,0.5865106,582.14,581.45,0.28069816]
[1743950718936,0.5865106,582.13,581.37,0.28069816]
[1743950719135,0.5865106,582.12,581.37,0.28069816]
[1743950719334,0.5865106,582.11,581.37,0.28069816]
[1743950719535,0.5865106,582.1,581.37,0.28069816]
[1743950719837,0.29904229,582.15,581.37,0.28069816]
[1743950719838,0.5865106,582.09,581.37,0.28069816]
[1743950720040,0.5865106,582.08,581.38,0.28079186]
[1743950720341,0.5865106,582.07,581.39,0.28079186]
[1743950720541,0.5865106,582.06,581.37,0.28079186]
[1743950720737,0.5865106,582.05,581.37,0.28079186]
[1743950720937,0.5865106,582.04,581.37,0.28079186]
[1743950721136,0.5865106,582.03,581.37,0.28079186]
[1743950721341,0.58660964,582.02,581.37,0.28079186]
[1743950721541,0.58660964,582.01,581.36,0.34402091]
[1743950721744,0.58660964,582.0,581.37,0.28087534]
[1743950721942,0.58660964,581.99,581.37,0.28087534]
[1743950722242,0.58660964,581.98,581.37,0.28087534]
[1743950722443,0.58660964,581.97,581.37,0.28087534]
[1743950722643,0.58660964,581.96,581.37,0.28087534]
[1743950722841,0.765,581.98,581.37,0.28087534]
[1743950723039,0.58660795,581.97,581.37,0.28087534]
[1743950723240,0.765,581.98,581.37,0.28087534]
[1743950723445,0.58656554,581.97,581.37,0.28087534]
[1743950723745,0.765,581.98,581.37,0.28087534]
[1743950723945,0.5865876,581.97,581.36,0.34402091]
[1743950724245,1.06412197,581.98,581.37,0.28085746]
[1743950724445,0.58654205,581.97,581.37,0.28085746]
[1743950724740,0.58654205,581.96,581.37,0.28085746]
[1743950724939,1.06412197,581.98,581.37,0.28085746]
[1743950725140,0.58656054,581.97,581.37,0.28085746]
[1743950725340,0.58656054,581.96,581.37,0.28085746]
[1743950725541,0.58656054,581.95,581.37,0.28085746]
[1743950725742,1.06412197,581.98,581.37,0.28085746]
[1743950725946,0.58653657,581.97,581.36,0.34402091]
[1743950726146,1.06412197,581.98,581.37,0.28080292]
[1743950726342,0.58647491,581.97,581.37,0.28080292]
[1743950726547,0.58648491,581.96,581.37,0.28080292]
[1743950726846,0.765,581.98,581.37,0.28080292]
[1743950727046,0.58649574,581.97,581.37,0.28080292]
[1743950727247,0.58649574,581.96,581.37,0.28080292]
[1743950727546,0.58645162,581.95,581.37,0.28080292]
[1743950727747,0.58646101,581.94,581.37,0.28080292]
[1743950728046,0.58646851,581.93,581.37,0.28080292]
[1743950728246,0.58642123,581.92,581.37,0.28080292]
[1743950728449,0.58644915,581.91,581.37,0.28080292]
[1743950728647,0.58644915,581.9,581.08,0.28094561]
[1743950728847,0.58644915,581.89,581.08,0.28094561]
[1743950729142,0.58644915,581.88,581.08,0.28094561]
[1743950729343,0.58628493,581.87,581.08,0.28094561]
[1743950729544,0.29912969,581.96,581.08,0.28094561]
[1743950729545,0.58628493,581.86,581.08,0.28094561]
[1743950729744,0.29912969,581.96,581.08,0.28094561]
[1743950729948,0.58628893,581.95,581.08,0.28094561]
[1743950730148,0.58628893,581.94,581.09,0.28097449]
[1743950730348,0.58628893,581.93,581.1,0.28097449]
[1743950730544,0.58628893,581.92,581.08,0.28097449]
[1743950730750,0.58628893,581.91,581.09,0.28097449]
[1743950730949,0.58628893,581.9,581.08,0.28097449]
[1743950731150,0.58628893,581.89,581.09,0.28097449]
[1743950731346,0.58628893,581.88,581.08,0.28097449]
[1743950731550,0.58628893,581.87,580.96,0.28097449]
[1743950731750,0.58628893,581.86,580.97,0.28103075]
[1743950731945,0.58628893,581.85,580.98,0.28103075]
[1743950732250,0.58628893,581.93,580.99,0.28103075]
[1743950732546,0.58628893,581.92,580.96,0.28103075]
[1743950732752,0.58628893,581.91,580.97,0.6252826]
[1743950732952,0.58628893,581.9,580.98,0.28103075]
[1743950733252,0.58628893,581.93,580.97,0.34425185]
[1743950733556,0.58628893,581.92,580.98,0.2809613]
[1743950733755,0.58628893,581.93,580.99,0.34424]
[1743950734052,0.929,581.91,581.0,0.2809613]
[1743950734254,0.929,581.91,581.01,0.34422815]
[1743950734547,0.796,581.9,581.02,0.2809613]
[1743950736652,0.796,581.9,581.01,0.34422815]
[1743950736852,0.796,581.9,581.03,0.28105696]
[1743950737050,0.796,581.9,581.04,0.28105696]
[1743950737256,0.796,581.9,581.02,0.28105696]
[1743950739659,0.941,581.89,581.02,0.28105696]
[1743950740059,0.941,581.89,581.01,0.34422815]
[1743950740259,0.941,581.89,581.02,0.28103986]
[1743950740562,0.806,581.88,581.02,0.28103986]
[1743950748461,1.136,581.87,581.02,0.28103986]
[1743950748764,1.136,581.87,581.03,1.2852962]
[1743950749262,1.136,581.87,581.04,0.62525024]
[1743950749568,1.136,581.87,581.05,0.28103986]
[1743950749863,1.136,581.87,581.06,0.34419853]
[1743950750068,1.136,581.87,581.07,0.28103986]
[1743950750364,1.136,581.87,581.08,0.28135212]
[1743950750568,1.136,581.87,581.07,0.28135212]
[1743950752372,1.136,581.87,581.08,0.28135212]
[1743950752672,1.136,581.87,581.09,0.28135212]
[1743950752870,1.136,581.87,581.1,0.28135212]
[1743950753069,0.636,581.86,581.11,0.28135212]
[1743950753271,0.636,581.86,581.12,0.28135212]
[1743950753471,0.923,581.85,581.07,0.28135212]
[1743950753671,0.923,581.85,581.08,0.28135212]
[1743950753972,0.923,581.85,581.06,0.34419853]
[1743950754267,0.923,581.85,581.07,0.28104536]
[1743950754471,0.768,581.84,581.08,0.28104484]
[1743950754669,0.768,581.84,581.3,1.2852962]
[1743950754868,0.768,581.84,581.31,0.28104484]
[1743950755474,0.768,581.84,581.3,1.2852962]
[1743950755675,0.768,581.84,581.31,0.28111437]
[1743950756778,0.768,581.84,581.35,1.2852962]
[1743950757075,0.768,581.84,581.36,0.28111437]
[1743950758175,0.768,581.84,581.37,0.34401499]
[1743950758373,0.768,581.84,581.38,0.28111437]
[1743950761171,0.777,581.83,581.38,0.28111437]
[1743950761877,0.777,581.83,581.39,0.28100843]
[1743950762070,0.777,581.83,581.39,0.34400316]
[1743950762276,1.779,581.83,581.4,0.28100843]
[1743950762872,1.779,581.83,581.41,0.34399133]
[1743950763171,1.779,581.83,581.42,0.28100843]
[1743950763374,1.779,581.83,581.42,0.34398541]
[1743950763571,1.779,581.83,581.43,0.28089828]
[1743950764076,1.779,581.83,581.42,0.34398541]
[1743950764277,1.779,581.83,581.43,0.28079095]
[1743950765380,1.779,581.83,581.44,0.28073984]
[1743950765580,1.779,581.83,581.45,0.28073984]
[1743950765778,1.779,581.83,581.43,0.28073984]
[1743950766078,1.779,581.83,581.44,0.28073984]
[1743950766378,1.779,581.83,581.45,0.28073984]
[1743950766573,1.779,581.83,581.43,0.28073984]
[1743950766879,2.833,581.83,581.44,0.28073984]
[1743950767078,2.833,581.83,581.43,0.28073984]
[1743950768478,2.833,581.83,581.42,0.34398541]
[1743950768679,2.833,581.83,581.43,0.28048342]
[1743950771178,3.599,581.83,581.43,0.28048342]
[1743950771674,3.599,581.83,581.44,0.34397358]
[1743950771877,3.599,581.83,581.45,0.28048342]
[1743950772074,3.599,581.83,581.46,0.34396175]
[1743950772280,3.599,581.83,581.47,0.28048342]
[1743950772478,3.599,581.83,581.48,0.34394992]
[1743950772680,3.599,581.83,581.49,0.28048342]
[1743950772878,3.599,581.83,581.5,0.34393809]
[1743950773078,3.599,581.83,581.51,0.28048342]
[1743950773282,3.599,581.83,581.51,0.62441559]
[1743950773484,3.599,581.83,581.52,0.28048342]
[1743950774280,2.597,581.83,581.51,0.34393217]
[1743950774481,2.597,581.83,581.52,0.28020329]
[1743950774680,2.597,581.83,581.53,0.34392034]
[1743950774888,2.597,581.83,581.54,0.28020329]
[1743950775083,2.597,581.83,581.55,0.34390852]
[1743950775281,1.82,581.83,581.56,0.28020329]
[1743950775487,1.82,581.83,581.57,0.34389669]
[1743950775686,1.82,581.83,581.58,0.28020329]
[1743950776086,1.82,581.83,581.57,0.34389669]
[1743950776287,1.82,581.83,581.58,0.28021499]
[1743950776587,1.82,581.83,581.59,0.34388486]
[1743950776786,1.82,581.83,581.6,0.28021499]
[1743950776985,1.82,581.83,581.61,0.34387304]
[1743950777186,1.82,581.83,581.62,0.28023564]
[1743950777383,1.82,581.83,581.63,0.34386121]
[1743950777584,1.82,581.83,581.64,0.28023564]
[1743950777789,1.82,581.83,581.65,0.34384939]
[1743950777986,1.82,581.83,581.66,0.28023564]
[1743950778182,1.82,581.83,581.67,0.34383757]
[1743950778386,1.82,581.83,581.68,0.28023564]
[1743950778589,1.82,581.83,581.69,0.34382574]
[1743950778788,1.82,581.83,581.7,0.28023564]
[1743950778988,1.82,581.83,581.71,0.34381392]
[1743950779181,1.82,581.83,581.72,0.28023564]
[1743950779385,1.82,581.83,581.73,0.3438021]
[1743950779587,1.82,581.83,581.74,0.28023564]
[1743950781090,1.82,581.83,581.75,0.34379028]
[1743950781291,1.82,581.83,581.76,0.28023564]
[1743950787298,1.054,581.83,581.76,0.28023564]
[1743950792202,1.054,581.83,581.75,0.34379028]
[1743950792397,1.054,581.83,581.76,0.28012481]
[1743950793802,1.054,581.83,581.75,0.34379028]
[1743950794002,1.054,581.83,581.76,0.28011277]
[1743950797002,1.054,581.83,581.77,0.34377846]
[1743950797204,1.054,581.83,581.78,0.28011277]
[1743950799009,1.054,581.83,581.79,0.27993819]
[1743950799208,1.054,581.83,581.78,0.27993819]
[1743950799409,1.054,581.83,581.8,0.27993819]
[1743950799709,1.054,581.83,581.77,0.34377846]
[1743950799905,1.054,581.83,581.78,0.27993155]
[1743950800709,1.054,581.83,581.79,0.34376665]
[1743950800909,1.054,581.83,581.8,0.27993295]
[1743950801109,1.054,581.83,581.81,0.34375483]
[1743950801605,1.054,581.83,581.82,0.27993295]
[1743950803910,0.787,581.96,581.82,0.27993295]
[1743950805409,1.755,582.12,581.82,0.27993295]
[1743950806808,0.744,582.12,581.82,0.27993295]
[1743950807210,0.744,582.12,581.84,1.2852962]
[1743950807513,0.744,582.12,581.85,0.27993295]
[1743950809516,0.744,582.12,581.86,1.2852962]
[1743950809712,0.744,582.12,581.87,0.27993295]
[1743950811318,0.744,582.12,581.89,1.2852962]
[1743950811517,0.744,582.12,581.9,0.27993295]
[1743950814128,0.744,582.12,581.89,1.2852962]
[1743950814427,0.744,582.12,581.9,0.27959508]
[1743950815430,0.744,582.12,581.91,1.2852962]
[1743950815630,0.744,582.12,581.92,0.27959508]
[1743950815930,0.744,582.12,581.91,1.2852962]
[1743950816232,0.744,582.12,581.92,0.27951017]
[1743950817131,0.744,582.12,581.93,0.34368394]
[1743950817330,0.744,582.12,581.94,0.27951017]
[1743950817631,0.744,582.12,581.95,0.34367213]
[1743950817825,0.744,582.12,581.96,0.27951017]
[1743950818026,0.744,582.12,581.97,0.34366032]
[1743950818230,0.744,582.12,581.98,0.27951017]
[1743950818530,0.744,582.12,581.98,0.62316459]
[1743950818729,0.744,582.12,581.99,0.27951017]
[1743950819835,0.744,582.12,581.98,0.34365442]
[1743950820028,0.744,582.12,581.99,0.27976323]
[1743950822134,0.744,582.12,581.98,0.34365442]
[1743950822334,0.744,582.12,582.0,0.27970892]
[1743950822535,0.744,582.12,582.01,0.27970892]
[1743950822831,0.744,582.12,582.02,0.27970892]
[1743950823037,0.744,582.12,581.99,0.27970892]
[1743950823336,0.744,582.12,582.0,0.27970892]
[1743950823536,0.744,582.12,581.99,0.27970892]
[1743950823836,0.744,582.12,582.0,0.27970892]
[1743950824032,0.744,582.12,581.99,0.27970892]
[1743950824233,0.744,582.12,582.01,0.27970892]
[1743950824534,0.744,582.12,582.0,0.27970892]
[1743950824736,0.744,582.12,582.01,0.27970892]
[1743950825034,0.744,582.12,582.02,0.27970892]
[1743950825234,0.744,582.12,581.99,0.27970892]
[1743950825635,0.744,582.12,582.0,0.27963385]
[1743950825837,0.939,582.18,582.01,0.27963385]
[1743950826037,0.939,582.18,581.98,0.34365442]
[1743950826038,0.939,582.18,581.99,0.27963385]
[1743950826338,0.939,582.18,582.0,0.27963385]
[1743950826534,0.939,582.18,582.01,0.27963385]
[1743950826741,0.939,582.18,581.99,0.27963385]
[1743950826940,0.939,582.18,582.0,0.27963385]
[1743950827240,0.939,582.18,581.99,0.27963385]
[1743950827541,0.939,582.18,582.0,0.27963385]
[1743950827737,0.939,582.18,581.99,0.27963385]
[1743950828041,0.939,582.18,582.0,0.27963385]
[1743950828241,0.939,582.18,581.99,0.27963385]
[1743950829543,0.939,582.18,582.0,0.27973802]
[1743950829743,0.939,582.18,581.99,0.27973802]
[1743950829938,0.939,582.18,581.98,0.34365442]
[1743950829939,0.939,582.18,582.0,0.27973802]
[1743950830244,0.939,582.18,581.99,0.27973802]
[1743950830543,0.939,582.18,582.0,0.27972661]
[1743950830744,0.939,582.18,581.99,0.27972661]
[1743950830939,0.939,582.18,582.0,0.27972661]
[1743950831140,0.939,582.18,581.99,0.27972661]
[1743950834645,0.939,582.18,582.04,1.2852962]
[1743950834843,0.939,582.18,582.05,0.27972661]
[1743950835348,0.939,582.18,582.04,1.2852962]
[1743950835548,0.939,582.18,582.05,0.27984841]
[1743950837153,0.15942996,582.18,582.06,0.27971483]
[1743950837448,1.858,582.35,582.07,0.27971483]
[1743950837648,1.858,582.35,582.05,0.27971483]
[1743950837844,1.858,582.35,582.06,0.27971483]
[1743950838047,1.858,582.35,582.05,0.27971483]
[1743950838449,0.976,582.35,582.05,0.27971483]
[1743950838649,0.976,582.35,582.04,1.2852962]
[1743950838849,0.976,582.35,582.05,0.2797852]
[1743950839050,0.976,582.35,582.15,1.2852962]
[1743950839244,0.976,582.35,582.16,0.2797852]
[1743950840351,0.976,582.35,582.15,1.2852962]
[1743950840651,0.976,582.35,582.16,0.27975413]
[1743950841149,0.976,582.35,581.99,0.27975413]
[1743950841447,1.968,582.35,581.99,0.27975413]
[1743950842251,1.968,582.35,581.99,0.57848453]
[1743950842452,1.968,582.35,582.0,0.62339674]
[1743950842653,1.968,582.35,582.01,0.62339083]
[1743950842948,1.968,582.35,582.02,0.62338493]